fUSD/lending_fUSD_20240625
["ID","MTS","AMOUNT","RATE_DAILY","PERIOD"]
[330373272,1719337906516,-500.0,0.0002,2]
[330373273,1719337906526,-773.72,0.0002,2]
[330373274,1719337906535,-608.05821453,0.0002,2]
[330373275,1719337906544,-500.0,0.0002,2]
[330373276,1719337906554,-1728.25,0.0002,2]
[330373277,1719337906563,-973.7,0.0002,2]
[330373278,1719337906573,-302.61518845,0.0002,2]
[330373279,1719337906583,-773.97,0.0002,2]
[330373280,1719337906592,-1154.02,0.0002,2]
[330373281,1719337906602,-1784.58,0.0002,2]
[330373282,1719337906611,-658.68,0.0002,2]
[330373283,1719337906621,-525.47,0.0002,2]
[330373284,1719337906630,-500.0,0.0002,2]
[330373285,1719337906640,-894.86,0.0002,2]
[330373286,1719337906649,-1106.26,0.0002,2]
[330373287,1719337906660,-500.0,0.0002,2]
[330373288,1719337906670,-556.82,0.0002,2]
[330373289,1719337906680,-1088.59,0.0002,2]
[330373290,1719337906690,-500.0,0.0002,2]
[330373291,1719337906700,-500.0,0.0002,2]
[330373292,1719337906709,-1061.87,0.0002,2]
[330373293,1719337906719,-1519.41,0.0002,2]
[330373294,1719337906730,-1886.29,0.0002,2]
[330373295,1719337906739,-671.23,0.0002,2]
[330373296,1719337906749,-842.01,0.0002,2]
[330373297,1719337906759,-500.0,0.0002,2]
[330373298,1719337906769,-500.0,0.0002,2]
[330373299,1719337906778,-848.32,0.0002,2]
[330373300,1719337906788,-500.0,0.0002,2]
[330373301,1719337906798,-571.84,0.0002,2]
[330373302,1719337906807,-547.07,0.0002,2]
[330373303,1719337906817,-1275.37,0.0002,2]
[330373304,1719337906826,-708.32,0.0002,2]
[330373305,1719337906837,-500.0,0.0002,2]
[330373306,1719337906847,-545.35,0.0002,2]
[330373307,1719337906859,-500.0,0.0002,2]
[330373308,1719337906869,-1199.18,0.0002,2]
[330373309,1719337906878,-500.0,0.0002,2]
[330373310,1719337906888,-508.26594509,0.0002,2]
[330373311,1719337906897,-500.0,0.0002,2]
[330373312,1719337906907,-2554.0,0.0002,2]
[330373313,1719337906918,-500.0,0.0002,2]
[330373314,1719337906928,-500.0,0.0002,2]
[330373315,1719337906939,-500.0,0.0002,2]
[330373316,1719337906949,-500.0,0.0002,2]
[330373317,1719337906959,-896.63,0.0002,2]
[330373318,1719337906968,-1510.6,0.0002,2]
[330373319,1719337906978,-899.64,0.0002,2]
[330373320,1719337906987,-500.0,0.0002,2]
[330373321,1719337906996,-500.0,0.0002,2]
[330373322,1719337907005,-678.52,0.0002,2]
[330373323,1719337907015,-2297.51,0.0002,2]
[330373324,1719337907025,-500.0,0.0002,2]
[330373325,1719337907035,-500.0,0.0002,2]
[330373326,1719337907044,-500.0,0.0002,2]
[330373327,1719337907053,-500.0,0.0002,2]
[330373328,1719337907062,-706.8,0.0002,2]
[330373329,1719337907072,-500.0,0.0002,2]
[330373330,1719337907081,-500.0,0.0002,2]
[330373331,1719337907092,-500.0,0.0002,2]
[330373332,1719337907102,-500.0,0.0002,2]
[330373333,1719337907111,-500.0,0.0002,2]
[330373334,1719337907121,-2864.14,0.0002,2]
[330373335,1719337907130,-500.0,0.0002,2]
[330373336,1719337907139,-500.0,0.0002,2]
[330373337,1719337907149,-500.0,0.0002,2]
[330373338,1719337907163,-767.35,0.0002,2]
[330373339,1719337907172,-500.0,0.0002,2]
[330373340,1719337907181,-1219.8,0.0002,2]
[330373341,1719337907191,-817.0,0.0002,2]
[330373342,1719337907201,-602.68,0.0002,2]
[330373343,1719337907210,-500.0,0.0002,2]
[330373344,1719337907219,-750.73,0.0002,2]
[330373345,1719337907228,-500.0,0.0002,2]
[330373346,1719337907240,-983.23,0.0002,2]
[330373347,1719337907249,-2190.09,0.0002,2]
[330373348,1719337907259,-500.0,0.0002,2]
[330373349,1719337907268,-1053.59,0.0002,2]
[330373350,1719337907277,-1755.84,0.0002,2]
[330373351,1719337907287,-502.66,0.0002,2]
[330373352,1719337907296,-811.39,0.0002,2]
[330373353,1719337907305,-500.0,0.0002,2]
[330373354,1719337907314,-500.0,0.0002,2]
[330373355,1719337907323,-1075.29,0.0002,2]
[330373356,1719337907333,-1534.29,0.0002,2]
[330373357,1719337907342,-500.0,0.0002,2]
[330373358,1719337907351,-721.67,0.0002,2]
[330373359,1719337907361,-500.0,0.0002,2]
[330373360,1719337907370,-1408.46,0.0002,2]
[330373361,1719337907380,-545.9,0.0002,2]
[330373362,1719337907389,-881.26,0.0002,2]
[330373363,1719337907399,-1154.57,0.0002,2]
[330373364,1719337907409,-500.0,0.0002,2]
[330373365,1719337907418,-1299.57,0.0002,2]
[330373366,1719337907428,-2576.08,0.0002,2]
[330373367,1719337907437,-500.0,0.0002,2]
[330373368,1719337907534,-561.35,0.0002,2]
[330373369,1719337907543,-764.04,0.0002,2]
[330373370,1719337907552,-500.0,0.0002,2]
[330373371,1719337907562,-500.0,0.0002,2]
[330373372,1719337907571,-500.0,0.0002,2]
[330373373,1719337907580,-500.0,0.0002,2]
[330373374,1719337907590,-605.73035719,0.0002,2]
[330373375,1719337907600,-500.0,0.0002,2]
[330373376,1719337907609,-500.0,0.0002,2]
[330373377,1719337907619,-1230.16,0.0002,2]
[330373378,1719337907628,-500.0,0.0002,2]
[330373379,1719337907638,-360.88034803,0.0002,2]
[330373380,1719337907647,-500.0,0.0002,2]
[330373381,1719337907657,-1956.39,0.0002,2]
[330373382,1719337907666,-947.68,0.0002,2]
[330373383,1719337907677,-654.42,0.0002,2]
[330373384,1719337907686,-2524.99,0.0002,2]
[330373385,1719337907696,-947.4,0.0002,2]
[330373386,1719337907705,-1606.65,0.0002,2]
[330373387,1719337907714,-500.0,0.0002,2]
[330373388,1719337907723,-500.0,0.0002,2]
[330373389,1719337907732,-1554.23,0.0002,2]
[330373390,1719337907742,-754.05,0.0002,2]
[330373391,1719337907751,-526.12,0.0002,2]
[330373392,1719337907760,-553.36,0.0002,2]
[330373393,1719337907770,-500.0,0.0002,2]
[330373394,1719337907779,-500.0,0.0002,2]
[330373395,1719337907789,-500.0,0.0002,2]
[330373396,1719337907798,-500.0,0.0002,2]
[330373397,1719337907807,-500.0,0.0002,2]
[330373398,1719337907817,-500.0,0.0002,2]
[330373399,1719337907827,-500.0,0.0002,2]
[330373400,1719337907839,-1472.44,0.0002,2]
[330373401,1719337907849,-2884.08,0.0002,2]
[330373402,1719337907858,-852.6,0.0002,2]
[330373403,1719337907868,-500.0,0.0002,2]
[330373404,1719337907877,-500.0,0.0002,2]
[330373405,1719337907887,-764.29,0.0002,2]
[330373406,1719337907896,-1169.5,0.0002,2]
[330373407,1719337907905,-500.0,0.0002,2]
[330373408,1719337907915,-1362.64,0.0002,2]
[330373409,1719337907924,-500.0,0.0002,2]
[330373410,1719337907933,-500.0,0.0002,2]
[330373411,1719337907942,-581.63,0.0002,2]
[330373412,1719337907952,-500.0,0.0002,2]
[330373413,1719337907961,-686.07,0.0002,2]
[330373414,1719337907971,-508.41,0.0002,2]
[330373415,1719337907980,-500.0,0.0002,2]
[330373416,1719337907990,-500.0,0.0002,2]
[330373417,1719337907999,-666.55,0.0002,2]
[330373418,1719337908009,-753.97,0.0002,2]
[330373419,1719337908018,-500.0,0.0002,2]
[330373420,1719337908028,-666.4,0.0002,2]
[330373421,1719337908038,-500.0,0.0002,2]
[330373422,1719337908048,-500.0,0.0002,2]
[330373423,1719337908057,-3770.43,0.0002,2]
[330373424,1719337908067,-500.0,0.0002,2]
[330373425,1719337908076,-613.8059589,0.0002,2]
[330373426,1719337908086,-566.7787926,0.0002,2]
[330373427,1719337908095,-806.51,0.0002,2]
[330373428,1719337908105,-500.0,0.0002,2]
[330373429,1719337908115,-1414.23,0.0002,2]
[330373430,1719337908125,-836.39,0.0002,2]
[330373431,1719337908135,-8800.46,0.0002,2]
[330373432,1719337908144,-500.0,0.0002,2]
[330373433,1719337908157,-2037.79,0.0002,2]
[330373434,1719337908167,-596.71211975,0.0002,2]
[330373435,1719337908176,-1917.68,0.0002,2]
[330373436,1719337908186,-735.13,0.0002,2]
[330373437,1719337908197,-500.0,0.0002,2]
[330373438,1719337908206,-500.0,0.0002,2]
[330373439,1719337908215,-268.4095311,0.0002,2]
[330373440,1719337908225,-353.34672941,0.0002,2]
[330373441,1719337908237,-500.0,0.0002,2]
[330373442,1719337908248,-500.0,0.0002,2]
[330373443,1719337908258,-879.5,0.0002,2]
[330373444,1719337908267,-500.0,0.0002,2]
[330373445,1719337908277,-828.4,0.0002,2]
[330373446,1719337908287,-2609.54,0.0002,2]
[330373447,1719337908296,-3037.31,0.0002,2]
[330373448,1719337908306,-500.0,0.0002,2]
[330373449,1719337908315,-500.0,0.0002,2]
[330373450,1719337908324,-958.33,0.0002,2]
[330373451,1719337908334,-500.0,0.0002,2]
[330373452,1719337908343,-500.0,0.0002,2]
[330373453,1719337908354,-500.0,0.0002,2]
[330373454,1719337908364,-500.0,0.0002,2]
[330373455,1719337908373,-615.03234227,0.0002,2]
[330373456,1719337908383,-2824.72,0.0002,2]
[330373457,1719337908392,-500.0,0.0002,2]
[330373458,1719337908402,-1143.56,0.0002,2]
[330373459,1719337908412,-803.49,0.0002,2]
[330373460,1719337908422,-500.0,0.0002,2]
[330373461,1719337908431,-1534.53,0.0002,2]
[330373462,1719337908441,-673.18,0.0002,2]
[330373463,1719337908450,-3376.96,0.0002,2]
[330373464,1719337908459,-500.0,0.0002,2]
[330373465,1719337908469,-620.54,0.0002,2]
[330373466,1719337908478,-500.0,0.0002,2]
[330373467,1719337908487,-500.0,0.0002,2]
[330373468,1719337908496,-3353.42,0.0002,2]
[330373469,1719337908505,-3376.21,0.0002,2]
[330373470,1719337908515,-500.0,0.0002,2]
[330373471,1719337908524,-500.0,0.0002,2]
[330373472,1719337908533,-501.21,0.0002,2]
[330373473,1719337908542,-500.0,0.0002,2]
[330373474,1719337908551,-500.0,0.0002,2]
[330373475,1719337908560,-532.64,0.0002,2]
[330373476,1719337908570,-500.0,0.0002,2]
[330373477,1719337908579,-350.94615389,0.0002,2]
[330373478,1719337908591,-1445.77,0.0002,2]
[330373479,1719337908602,-216.20715485,0.0002,2]
[330373480,1719337908612,-500.0,0.0002,2]
[330373481,1719337908621,-2523.52,0.0002,2]
[330373482,1719337908632,-500.0,0.0002,2]
[330373483,1719337908641,-1776.47,0.0002,2]
[330373484,1719337908651,-584.05,0.0002,2]
[330373485,1719337908660,-500.0,0.0002,2]
[330373486,1719337908670,-2900.66,0.0002,2]
[330373487,1719337908679,-500.0,0.0002,2]
[330373488,1719337908688,-2238.06,0.0002,2]
[330373489,1719337908697,-3124.53,0.0002,2]
[330373490,1719337908707,-500.0,0.0002,2]
[330373491,1719337908716,-700.23,0.0002,2]
[330373492,1719337908725,-762.22,0.0002,2]
[330373493,1719337908734,-1733.73,0.0002,2]
[330373494,1719337908743,-500.0,0.0002,2]
[330373495,1719337908752,-2060.1,0.0002,2]
[330373496,1719337908762,-2923.75,0.0002,2]
[330373497,1719337908771,-1916.65,0.0002,2]
[330373498,1719337908779,-500.0,0.0002,2]
[330373499,1719337908788,-813.4,0.0002,2]
[330373500,1719337908798,-500.0,0.0002,2]
[330373501,1719337908807,-579.87,0.0002,2]
[330373502,1719337908817,-1319.57,0.0002,2]
[330373503,1719337908826,-500.0,0.0002,2]
[330373504,1719337908837,-594.09,0.0002,2]
[330373505,1719337908846,-500.0,0.0002,2]
[330373506,1719337908856,-500.0,0.0002,2]
[330373507,1719337908865,-500.0,0.0002,2]
[330373508,1719337908876,-1466.86,0.0002,2]
[330373509,1719337908886,-747.48,0.0002,2]
[330373510,1719337908897,-805.41,0.0002,2]
[330373511,1719337908907,-823.04,0.0002,2]
[330373512,1719337908917,-1175.45,0.0002,2]
[330373513,1719337908927,-2342.23,0.0002,2]
[330373514,1719337908936,-500.0,0.0002,2]
[330373515,1719337908946,-1142.76,0.0002,2]
[330373516,1719337908955,-500.0,0.0002,2]
[330373517,1719337908964,-500.0,0.0002,2]
[330373518,1719337908974,-500.0,0.0002,2]
[330373519,1719337908983,-4082.89,0.0002,2]
[330373520,1719337908993,-1742.95,0.0002,2]
[330373521,1719337909002,-500.0,0.0002,2]
[330373522,1719337909011,-2181.34,0.0002,2]
[330373523,1719337909021,-1689.47,0.0002,2]
[330373524,1719337909030,-2213.32,0.0002,2]
[330373525,1719337909039,-500.0,0.0002,2]
[330373526,1719337909048,-500.0,0.0002,2]
[330373527,1719337909058,-868.48,0.0002,2]
[330373528,1719337909067,-585.34,0.0002,2]
[330373529,1719337909076,-500.0,0.0002,2]
[330373530,1719337909087,-500.0,0.0002,2]
[330373531,1719337909096,-1800.31,0.0002,2]
[330373532,1719337909105,-500.0,0.0002,2]
[330373533,1719337909114,-402.18288963,0.0002,2]
[330373534,1719337909123,-500.0,0.0002,2]
[330373535,1719337909132,-500.0,0.0002,2]
[330373536,1719337909141,-4580.93,0.0002,2]
[330373537,1719337909152,-500.0,0.0002,2]
[330373538,1719337909165,-500.0,0.0002,2]
[330373539,1719337909175,-500.0,0.0002,2]
[330373540,1719337909184,-3101.99,0.0002,2]
[330373541,1719337909193,-2613.05,0.0002,2]
[330373542,1719337909204,-1971.62,0.0002,2]
[330373543,1719337909214,-500.0,0.0002,2]
[330373544,1719337909224,-1370.76,0.0002,2]
[330373545,1719337909234,-1886.11,0.0002,2]
[330373546,1719337909244,-500.0,0.0002,2]
[330373547,1719337909254,-704.37,0.0002,2]
[330373548,1719337909264,-500.0,0.0002,2]
[330373549,1719337909273,-500.0,0.0002,2]
[330373550,1719337909282,-500.0,0.0002,2]
[330373551,1719337909291,-4341.89,0.0002,2]
[330373552,1719337909300,-1807.06,0.0002,2]
[330373553,1719337909309,-500.0,0.0002,2]
[330373554,1719337909318,-500.0,0.0002,2]
[330373555,1719337909328,-541.2947223,0.0002,2]
[330373556,1719337909338,-1880.49,0.0002,2]
[330373557,1719337909348,-1338.15,0.0002,2]
[330373558,1719337909360,-2231.21,0.0002,2]
[330373559,1719337909369,-500.0,0.0002,2]
[330373560,1719337909378,-2602.84,0.0002,2]
[330373561,1719337909388,-619.17,0.0002,2]
[330373562,1719337909397,-1282.5,0.0002,2]
[330373563,1719337909407,-500.0,0.0002,2]
[330373564,1719337909416,-2445.36,0.0002,2]
[330373565,1719337909426,-916.11,0.0002,2]
[330373566,1719337909435,-500.0,0.0002,2]
[330373567,1719337909444,-500.0,0.0002,2]
[330373568,1719337909454,-800.62,0.0002,2]
[330373569,1719337909463,-532.63978976,0.0002,2]
[330373570,1719337909472,-883.29,0.0002,2]
[330373571,1719337909482,-4820.28,0.0002,2]
[330373572,1719337909493,-529.48,0.0002,2]
[330373573,1719337909502,-601.2714702,0.0002,2]
[330373574,1719337909511,-1217.56,0.0002,2]
[330373575,1719337909520,-1772.0,0.0002,2]
[330373576,1719337909530,-2640.7,0.0002,2]
[330373577,1719337909539,-620.98563429,0.0002,2]
[330373578,1719337909548,-497.33809475,0.0002,2]
[330373579,1719337909557,-1941.76,0.0002,2]
[330373580,1719337909566,-468.65415798,0.0002,2]
[330373581,1719337909575,-500.0,0.0002,2]
[330373582,1719337909584,-500.0,0.0002,2]
[330373583,1719337909595,-1336.39,0.0002,2]
[330373584,1719337909604,-500.0,0.0002,2]
[330373585,1719337909613,-500.0,0.0002,2]
[330373586,1719337909622,-188.17654415,0.0002,2]
[330373587,1719337909632,-500.0,0.0002,2]
[330373588,1719337909642,-1027.49,0.0002,2]
[330373589,1719337909650,-500.0,0.0002,2]
[330373590,1719337909660,-1409.22,0.0002,2]
[330373591,1719337909669,-1417.51,0.0002,2]
[330373592,1719337909678,-592.68,0.0002,2]
[330373593,1719337909687,-814.4,0.0002,2]
[330373594,1719337909696,-839.77,0.0002,2]
[330373595,1719337909705,-500.0,0.0002,2]
[330373596,1719337909714,-965.36,0.0002,2]
[330373597,1719337909723,-500.0,0.0002,2]
[330373598,1719337909732,-596.81718298,0.0002,2]
[330373599,1719337909741,-500.0,0.0002,2]
[330373600,1719337909750,-1173.93,0.0002,2]
[330373601,1719337909759,-973.12,0.0002,2]
[330373602,1719337909770,-951.86,0.0002,2]
[330373603,1719337909779,-835.47,0.0002,2]
[330373604,1719337909788,-2021.58,0.0002,2]
[330373605,1719337909797,-500.0,0.0002,2]
[330373606,1719337909807,-626.95913538,0.0002,2]
[330373607,1719337909815,-3257.55,0.0002,2]
[330373608,1719337909824,-2073.78,0.0002,2]
[330373609,1719337909834,-500.0,0.0002,2]
[330373610,1719337909844,-2007.39,0.0002,2]
[330373611,1719337909853,-500.0,0.0002,2]
[330373612,1719337909862,-500.0,0.0002,2]
[330373613,1719337909871,-500.0,0.0002,2]
[330373614,1719337909879,-500.0,0.0002,2]
[330373615,1719337909888,-567.86,0.0002,2]
[330373616,1719337909897,-500.0,0.0002,2]
[330373617,1719337909906,-500.0,0.0002,2]
[330373618,1719337909915,-341.95241067,0.0002,2]
[330373619,1719337909924,-957.72,0.0002,2]
[330373620,1719337909933,-500.0,0.0002,2]
[330373621,1719337909942,-615.19262826,0.0002,2]
[330373622,1719337909951,-683.7,0.0002,2]
[330373623,1719337909960,-4421.52,0.0002,2]
[330373624,1719337909969,-1115.85,0.0002,2]
[330373625,1719337909978,-500.0,0.0002,2]
[330373626,1719337909987,-500.0,0.0002,2]
[330373627,1719337909996,-500.0,0.0002,2]
[330373628,1719337910005,-597.24,0.0002,2]
[330373629,1719337910015,-517.85,0.0002,2]
[330373630,1719337910024,-500.0,0.0002,2]
[330373631,1719337910034,-500.0,0.0002,2]
[330373632,1719337910043,-500.0,0.0002,2]
[330373633,1719337910054,-500.0,0.0002,2]
[330373634,1719337910064,-293.01586263,0.0002,2]
[330373635,1719337910073,-424.97338387,0.0002,2]
[330373636,1719337910082,-1088.07,0.0002,2]
[330373637,1719337910092,-857.24,0.0002,2]
[330373638,1719337910101,-2633.78,0.0002,2]
[330373639,1719337910111,-500.0,0.0002,2]
[330373640,1719337910120,-2302.84,0.0002,2]
[330373641,1719337910130,-2105.71,0.0002,2]
[330373642,1719337910140,-500.0,0.0002,2]
[330373643,1719337910150,-500.0,0.0002,2]
[330373644,1719337910164,-500.0,0.0002,2]
[330373645,1719337910174,-1021.73,0.0002,2]
[330373646,1719337910183,-500.0,0.0002,2]
[330373647,1719337910195,-3949.53,0.0002,2]
[330373648,1719337910204,-3888.53,0.0002,2]
[330373649,1719337910215,-500.0,0.0002,2]
[330373650,1719337910225,-4247.19,0.0002,2]
[330373651,1719337910238,-500.0,0.0002,2]
[330373652,1719337910247,-500.0,0.0002,2]
[330373653,1719337910257,-500.0,0.0002,2]
[330373654,1719337910266,-590.88129744,0.0002,2]
[330373655,1719337910275,-918.37,0.0002,2]
[330373656,1719337910285,-3324.06,0.0002,2]
[330373657,1719337910294,-4509.77,0.0002,2]
[330373658,1719337910304,-524.5,0.0002,2]
[330373659,1719337910313,-500.0,0.0002,2]
[330373660,1719337910324,-500.0,0.0002,2]
[330373661,1719337910334,-500.0,0.0002,2]
[330373662,1719337910344,-2990.81,0.0002,2]
[330373663,1719337910354,-770.81,0.0002,2]
[330373664,1719337910363,-500.0,0.0002,2]
[330373665,1719337910373,-500.0,0.0002,2]
[330373666,1719337910383,-500.0,0.0002,2]
[330373667,1719337910392,-4435.09,0.0002,2]
[330373668,1719337910401,-787.48,0.0002,2]
[330373669,1719337910410,-816.41,0.0002,2]
[330373670,1719337910421,-524.09,0.0002,2]
[330373671,1719337910430,-500.0,0.0002,2]
[330373672,1719337910439,-2156.33,0.0002,2]
[330373673,1719337910450,-588.33,0.0002,2]
[330373674,1719337910460,-3040.27,0.0002,2]
[330373675,1719337910470,-820.87,0.0002,2]
[330373676,1719337910480,-500.0,0.0002,2]
[330373677,1719337910490,-3953.78,0.0002,2]
[330373678,1719337910499,-615.73,0.0002,2]
[330373679,1719337910509,-1819.63,0.0002,2]
[330373680,1719337910519,-500.0,0.0002,2]
[330373681,1719337910530,-500.0,0.0002,2]
[330373682,1719337910539,-341.50887703,0.0002,2]
[330373683,1719337910550,-593.21,0.0002,2]
[330373684,1719337910560,-752.59,0.0002,2]
[330373685,1719337910568,-1620.29,0.0002,2]
[330373686,1719337910578,-1102.6,0.0002,2]
[330373687,1719337910588,-500.0,0.0002,2]
[330373688,1719337910597,-2816.47,0.0002,2]
[330373689,1719337910606,-500.0,0.0002,2]
[330373690,1719337910615,-726.8,0.0002,2]
[330373691,1719337910625,-500.0,0.0002,2]
[330373692,1719337910634,-500.0,0.0002,2]
[330373693,1719337910644,-904.28,0.0002,2]
[330373694,1719337910653,-4616.86,0.0002,2]
[330373695,1719337910663,-500.0,0.0002,2]
[330373696,1719337910672,-500.0,0.0002,2]
[330373697,1719337910681,-502.69829182,0.0002,2]
[330373698,1719337910691,-4354.84,0.0002,2]
[330373699,1719337910700,-1001.05,0.0002,2]
[330373700,1719337910710,-500.0,0.0002,2]
[330373701,1719337910720,-2389.99,0.0002,2]
[330373702,1719337910729,-1761.28,0.0002,2]
[330373703,1719337910739,-4472.18,0.0002,2]
[330373704,1719337910748,-745.04,0.0002,2]
[330373705,1719337910757,-500.0,0.0002,2]
[330373706,1719337910767,-1342.38,0.0002,2]
[330373707,1719337910776,-500.0,0.0002,2]
[330373708,1719337910786,-500.0,0.0002,2]
[330373709,1719337910795,-500.0,0.0002,2]
[330373710,1719337910805,-1202.61,0.0002,2]
[330373711,1719337910814,-956.56,0.0002,2]
[330373712,1719337910824,-638.91217748,0.0002,2]
[330373713,1719337910834,-4593.86,0.0002,2]
[330373714,1719337910844,-1877.02,0.0002,2]
[330373715,1719337910853,-500.0,0.0002,2]
[330373716,1719337910863,-528.63,0.0002,2]
[330373717,1719337910873,-500.0,0.0002,2]
[330373718,1719337910882,-500.0,0.0002,2]
[330373719,1719337910892,-1269.87,0.0002,2]
[330373720,1719337910901,-500.0,0.0002,2]
[330373721,1719337910910,-500.0,0.0002,2]
[330373722,1719337910920,-500.0,0.0002,2]
[330373723,1719337910929,-2157.36,0.0002,2]
[330373724,1719337910939,-500.0,0.0002,2]
[330373725,1719337910947,-173.74655438,0.0002,2]
[330373726,1719337910956,-500.0,0.0002,2]
[330373727,1719337910966,-500.0,0.0002,2]
[330373728,1719337910976,-1489.93,0.0002,2]
[330373729,1719337910986,-724.21,0.0002,2]
[330373730,1719337910995,-500.0,0.0002,2]
[330373731,1719337911005,-4713.61,0.0002,2]
[330373732,1719337911014,-875.21,0.0002,2]
[330373733,1719337911023,-500.0,0.0002,2]
[330373734,1719337911033,-3570.88,0.0002,2]
[330373735,1719337911042,-3523.21,0.0002,2]
[330373736,1719337911051,-3239.05,0.0002,2]
[330373737,1719337911061,-517.55,0.0002,2]
[330373738,1719337911071,-88150.18,0.0002,2]
[330373739,1719337911079,-7491.31,0.0002,2]
[330373740,1719337911090,-500.0,0.0002,2]
[330373741,1719337911099,-500.0,0.0002,2]
[330373742,1719337911108,-500.0,0.0002,2]
[330373743,1719337911117,-500.0,0.0002,2]
[330373744,1719337911129,-500.0,0.0002,2]
[330373745,1719337911138,-1942.81,0.0002,2]
[330373746,1719337911148,-1819.03,0.0002,2]
[330373747,1719337911162,-500.0,0.0002,2]
[330373748,1719337911171,-504.65,0.0002,2]
[330373749,1719337911181,-755.86,0.0002,2]
[330373750,1719337911191,-503.8,0.0002,2]
[330373751,1719337911201,-500.0,0.0002,2]
[330373752,1719337911210,-500.0,0.0002,2]
[330373753,1719337911219,-500.0,0.0002,2]
[330373754,1719337911229,-500.0,0.0002,2]
[330373755,1719337911241,-500.0,0.0002,2]
[330373756,1719337911251,-500.0,0.0002,2]
[330373757,1719337911260,-500.0,0.0002,2]
[330373758,1719337911270,-1033.56,0.0002,2]
[330373759,1719337911279,-867.52,0.0002,2]
[330373760,1719337911289,-3677.19,0.0002,2]
[330373761,1719337911299,-869.1,0.0002,2]
[330373762,1719337911308,-500.0,0.0002,2]
[330373763,1719337911318,-500.0,0.0002,2]
[330373764,1719337911327,-2597.7,0.0002,2]
[330373765,1719337911337,-1409.52,0.0002,2]
[330373766,1719337911346,-500.0,0.0002,2]
[330373767,1719337911357,-719.97,0.0002,2]
[330373768,1719337911367,-4086.22,0.0002,2]
[330373769,1719337911377,-500.0,0.0002,2]
[330373770,1719337911387,-500.0,0.0002,2]
[330373771,1719337911396,-4448.43,0.0002,2]